bitfinex-derivatives/quotes_ETHF0:USTF0_20250926
["timestamp","ask_amount","ask_price","bid_price","bid_amount"]
[1758921010232,3.78330537,4006.1,4006.0,0.70836458]
[1758921010528,3.78330537,4006.1,4006.0,0.45636458]
[1758921010926,4.3207404,4006.1,4006.0,0.45636458]
[1758921015430,1.01243,4005.6,4005.5,0.3419]
[1758921015630,1.01244,4005.5,4005.4,0.252]
[1758921015935,1.00476537,4005.5,4005.4,1.13115]
[1758921016434,1.00476537,4005.5,4005.4,1.13430511]
[1758921016622,0.55572537,4005.5,4005.4,1.13430511]
[1758921016827,0.12652537,4005.5,4005.4,1.13430511]
[1758921017026,0.79016537,4005.5,4005.4,1.13430511]
[1758921017534,0.79016537,4005.5,4005.4,1.46120511]
[1758921018937,0.79016537,4005.5,4005.4,1.01215511]
[1758921019235,1.00476537,4005.5,4005.4,1.01215511]
[1758921020828,0.57556537,4005.5,4005.4,1.01215511]
[1758921022832,0.79016537,4005.5,4005.4,1.01215511]
[1758921023140,0.57556537,4005.5,4005.4,1.01215511]
[1758921023337,0.79016537,4005.5,4005.4,1.01215511]
[1758921023639,0.79016537,4005.5,4005.4,0.76015511]
[1758921023838,0.79016537,4005.5,4005.4,1.01215511]
[1758921026739,0.79016537,4005.5,4005.4,1.46120511]
[1758921028339,0.78625653,4005.5,4005.4,1.46120511]
[1758921030741,0.33721653,4005.5,4005.4,1.46120511]
[1758921031043,1.00085653,4005.5,4005.4,0.54955511]
[1758921031244,1.00085653,4005.5,4005.4,1.46120511]
[1758921032043,0.12261653,4005.5,4005.4,1.46120511]
[1758921034641,0.78625653,4005.5,4005.4,0.76015511]
[1758921034840,0.78625653,4005.5,4005.4,1.01215511]
[1758921035244,0.33721653,4005.5,4005.4,1.46120511]
[1758921035640,0.33721653,4005.5,4005.4,1.20920511]
[1758921035841,0.33721653,4005.5,4005.4,1.46120511]
[1758921037246,0.33723822,4005.5,4005.4,1.46120511]
[1758921038447,0.12263822,4005.5,4005.4,1.46120511]
[1758921039152,0.55183822,4005.5,4005.4,1.46119511]
[1758921039448,0.12263822,4005.5,4005.4,1.46119511]
[1758921041445,0.44901,4005.7,4005.6,1.20602]
[1758921041751,1.11644258,4005.7,4005.6,1.20602]
[1758921044647,0.66743258,4005.7,4005.6,1.20602]
[1758921045452,0.12277298,4005.7,4005.6,1.20602]
[1758921046849,0.12277298,4005.7,4005.6,6.20602]
[1758921048253,0.00302926,4006.6,4006.5,0.869]
[1758921048555,0.00302926,4006.6,4006.5,1.121]
[1758921050956,0.69862926,4006.6,4006.5,0.869]
[1758921051256,0.69862926,4006.6,4006.5,0.9053]
[1758921051456,0.69862926,4006.6,4006.5,0.5594]
[1758921051656,0.69862926,4006.6,4006.5,0.9053]
[1758921052659,0.69862926,4006.6,4006.5,0.9063]
[1758921054361,1.14753926,4006.6,4006.5,0.9063]
[1758921056358,0.00302926,4006.6,4006.5,1.57092]
[1758921057353,3.21082926,4006.6,4006.5,1.57092]
[1758921058361,0.00302926,4006.6,4006.5,1.57092]
[1758921059664,3.2078,4007.1,4007.0,1.31786]
[1758921059961,3.2078,4007.1,4007.0,1.121]
[1758921060162,3.7780408,4007.1,4007.0,1.121]
[1758921060555,3.77987345,4007.1,4007.0,1.121]
[1758921064868,4.00577345,4007.1,4007.0,1.121]
[1758921065069,4.47547345,4007.1,4007.0,0.869]
[1758921065370,4.47547345,4007.1,4007.0,0.5594]
[1758921066062,4.71009592,4007.1,4006.6,0.2225]
[1758921066264,0.6769,4006.7,4006.6,0.5306]
[1758921066562,0.79822327,4006.7,4006.6,0.7826]
[1758921066961,1.24712327,4006.7,4006.6,1.23151]
[1758921069668,0.99042327,4006.7,4006.6,0.7434]
[1758921070468,1.24712327,4006.7,4006.6,0.7434]
[1758921071073,1.24712327,4006.7,4006.6,1.19231]
[1758921071368,1.24712327,4006.7,4006.6,0.5601]
[1758921072066,0.99042327,4006.7,4006.6,0.9954]
[1758921073264,1.24732327,4006.7,4006.6,0.9954]
[1758921073674,1.24732327,4006.7,4006.6,1.44431]
[1758921073860,0.12132327,4006.7,4006.6,1.44431]
[1758921074965,0.12132327,4006.7,4006.6,6.44431]
[1758921078067,0.00183265,4007.1,4007.0,1.30196]
[1758921078265,0.00183265,4007.1,4007.0,1.55396]
[1758921080160,0.00183265,4007.1,4007.0,1.74910418]
[1758921080863,0.00183265,4007.1,4007.0,1.55396]
[1758921081565,0.00183265,4007.1,4007.0,0.8531]
[1758921081866,0.00183265,4007.1,4007.0,1.55396]
[1758921081867,0.22353265,4007.1,4007.0,1.55396]
[1758921082272,0.00183265,4007.1,4007.0,1.55396]
[1758921087979,0.00183265,4007.1,4007.0,1.30196]
[1758921088179,0.00183265,4007.1,4007.0,1.55396]
[1758921089982,0.12286289,4007.1,4007.0,1.55396]
[1758921090175,0.12286289,4007.1,4007.0,1.30196]
[1758921090377,0.12286289,4007.1,4007.0,1.55396]
[1758921090675,1.27681289,4007.1,4007.0,0.8531]
[1758921090876,4.48461289,4007.1,4007.0,1.1051]
[1758921091268,4.22771289,4007.1,4007.0,1.1051]
[1758921092982,3.33066289,4007.1,4007.0,1.55396]
[1758921093577,4.00121289,4007.1,4007.0,1.55396]
[1758921095282,3.55236289,4007.1,4007.0,1.55396]
[1758921095583,3.33066289,4007.1,4007.0,1.55396]
[1758921096483,3.33064318,4007.1,4007.0,1.55396]
[1758921098185,3.55234318,4007.1,4007.0,1.55396]
[1758921098675,3.33064318,4007.1,4007.0,1.55396]
[1758921100785,3.33063444,4007.1,4007.0,1.55396]
[1758921101085,3.55233444,4007.1,4007.0,1.55396]
[1758921101285,4.00118444,4007.1,4007.0,1.55396]
[1758921102286,3.55233444,4007.1,4007.0,1.55396]
[1758921103087,4.00118444,4007.1,4007.0,1.55396]
[1758921104978,4.00118444,4007.1,4007.0,1.1051]
[1758921105681,4.21198444,4007.1,4007.0,1.1051]
[1758921115096,4.46888444,4007.1,4007.0,1.1051]
[1758921117993,4.21198444,4007.1,4007.0,1.1051]
[1758921119392,4.21198444,4007.1,4007.0,2.45113043]
[1758921120301,4.46888444,4007.1,4007.0,2.45113043]
[1758921122702,4.46888444,4007.1,4007.0,2.89999043]
[1758921122901,4.21198444,4007.1,4007.0,2.89999043]
[1758921123201,4.21198444,4007.1,4007.0,1.55396]
[1758921123202,3.33063444,4007.1,4007.0,1.55396]
[1758921125507,3.53613444,4007.1,4007.0,1.55396]
[1758921127008,3.74693444,4007.1,4007.0,0.8531]
[1758921127307,4.45118444,4007.1,4007.0,0.56]
[1758921127494,4.45118444,4007.1,4007.0,0.308]
[1758921127697,0.6847,4006.9,4006.8,2.58242901]
[1758921127898,0.80570179,4006.9,4006.8,2.83442901]
[1758921128104,0.80570179,4006.9,4006.8,1.04088]
[1758921128908,0.80570179,4006.9,4006.8,1.26038]
[1758921130604,0.80570179,4006.9,4006.8,1.47108]
[1758921130907,0.12100179,4006.9,4006.8,1.47108]
[1758921131107,0.12100179,4006.9,4006.8,3.26462901]
[1758921136210,0.00183265,4007.1,4007.0,1.32616]
[1758921136513,0.12041012,4007.1,4007.0,1.57816]
[1758921137413,0.12041012,4007.1,4007.0,3.37117431]
[1758921137811,0.00183265,4007.1,4007.0,1.57816]
[1758921141912,1.12182,4008.3,4007.0,1.57816]
[1758921141913,0.2209,4008.1,4008.0,1.32604]
[1758921142123,3.2078,4008.3,4008.2,1.19503]
[1758921142415,3.75711903,4008.3,4008.2,2.34228934]
[1758921142718,4.01401903,4008.3,4008.2,2.34228934]
[1758921142915,4.0160812,4008.3,4008.2,2.09028934]
[1758921143117,4.0160812,4008.3,4008.2,2.79101934]
[1758921143519,4.0160812,4008.3,4008.2,1.44703]
[1758921143829,4.0160812,4008.3,4008.2,0.5214]
[1758921144119,0.6877,4008.2,4008.1,1.65938934]
[1758921144320,0.80621903,4008.2,4008.1,2.11738934]
[1758921145320,0.54931903,4008.2,4008.1,1.44704]
[1758921146321,0.54931903,4008.2,4008.1,2.79102934]
[1758921146620,0.54931903,4008.2,4008.1,1.44704]
[1758921151219,0.11851903,4008.2,4008.1,1.44704]
[1758921151526,3.20986217,4008.3,4008.2,1.19503]
[1758921151823,3.32818577,4008.3,4008.2,1.19503]
[1758921152019,0.12038577,4008.3,4008.2,1.19503]
[1758921153823,0.12038577,4008.3,4008.2,2.53901934]
[1758921154021,0.00206217,4008.3,4008.2,1.19503]
[1758921161835,0.22296217,4008.3,4008.2,1.19503]
[1758921162132,0.22296217,4008.3,4008.2,1.44703]
[1758921165934,0.21306217,4008.3,4008.2,1.44703]
[1758921166437,0.00206217,4008.3,4008.2,1.44703]
[1758921167336,0.21306217,4008.3,4008.2,1.44703]
[1758921168237,0.32936814,4008.3,4008.2,1.44703]
[1758921168636,0.32936814,4008.3,4008.2,1.19503]
[1758921168833,0.32936814,4008.3,4008.2,0.9983]
[1758921169141,0.54446814,4008.3,4008.2,0.9983]
[1758921169336,0.54446814,4008.3,4008.2,1.44703]
[1758921170030,1.24988814,4008.3,4008.2,0.7463]
[1758921170334,1.24988814,4008.3,4008.2,0.9983]
[1758921170540,0.99318814,4008.3,4008.2,0.9983]
[1758921171037,0.54446814,4008.3,4008.2,0.9983]
[1758921171340,0.32936814,4008.3,4008.2,0.9983]
[1758921171940,0.77808814,4008.3,4008.2,0.9983]
[1758921172839,0.32936814,4008.3,4008.2,1.44703]
[1758921173641,0.77808814,4008.3,4008.2,0.9983]
[1758921178751,0.32936814,4008.3,4008.2,1.44702]
[1758921182448,0.11836814,4008.3,4008.2,1.44702]
[1758921189452,0.11836814,4008.3,4008.2,3.23909069]
[1758921189751,3.2078,4009.4,4009.3,0.4322]
[1758921189951,3.65639,4009.4,4009.3,1.0002]
[1758921190145,3.86879,4009.4,4009.3,1.0002]
[1758921190851,4.07595727,4009.4,4009.3,1.00249777]
[1758921191446,3.20986727,4009.4,4009.3,1.45109777]
[1758921192854,3.20986727,4009.4,4009.3,1.00249777]
[1758921193050,3.43236727,4009.4,4009.3,1.00249777]
[1758921193357,4.35125727,4009.4,4009.3,0.31829777]
[1758921193542,4.35125727,4009.4,4009.3,0.57029777]
[1758921193856,9.35125727,4009.4,4009.3,0.25429777]
[1758921198858,4.09444727,4009.4,4009.3,1.01429777]
[1758921199261,4.35124727,4009.4,4009.3,1.01429777]
[1758921199457,4.35124727,4009.4,4009.3,0.79379777]
[1758921201752,4.46816437,4009.4,4009.3,0.79379777]
[1758921206865,4.4681246,4009.4,4009.3,0.79379777]
[1758921208264,4.4681246,4009.4,4009.3,0.00229777]
[1758921208456,4.98209179,4009.4,4009.3,0.00229777]
[1758921208972,4.98209179,4009.4,4009.3,0.32859777]
[1758921210862,4.98209179,4009.4,4009.3,0.00229777]
[1758921211263,4.98209179,4009.4,4009.3,0.32859777]
[1758921212364,4.98209179,4009.4,4009.3,0.00229777]
[1758921212562,0.88467,4008.7,4008.6,0.3263]
[1758921212757,1.25834733,4008.7,4008.6,0.3263]
[1758921213463,1.25834733,4008.7,4008.6,0.32900205]
[1758921213970,1.25834733,4008.7,4008.6,0.77768205]
[1758921215072,1.25834733,4008.7,4008.6,0.99088205]
[1758921216271,0.33937733,4008.7,4008.6,1.21138205]
[1758921216477,0.11687733,4008.7,4008.6,1.21138205]
[1758921222677,0.11687733,4008.7,4008.6,0.76270205]
[1758921225375,0.11687733,4008.7,4008.6,1.01470205]
[1758921226172,0.56554733,4008.7,4008.6,1.01470205]
[1758921240290,0.11687733,4008.7,4008.6,1.46338205]
[1758921240496,0.11687733,4008.7,4008.6,8.25669295]
[1758921240794,0.11687733,4008.7,4008.6,6.46338205]
[1758921241196,0.11687733,4008.7,4008.6,8.25726591]
[1758921241697,3.65846727,4009.4,4009.3,0.452]
[1758921241897,3.65846727,4009.4,4009.3,1.0121]
[1758921243003,4.60726278,4009.4,4009.3,1.0121]
[1758921243902,4.38796278,4009.4,4009.3,1.0121]
[1758921244503,4.60726278,4009.4,4009.3,1.0121]
[1758921245304,4.38796278,4009.4,4009.3,1.0121]
[1758921245603,3.93936278,4009.4,4009.3,1.0121]
[1758921245798,3.86435727,4009.4,4009.3,1.0121]
[1758921246705,3.20986727,4009.4,4009.3,1.0121]
[1758921247205,3.20986727,4009.4,4009.3,1.4607]
[1758921247904,0.00206727,4009.4,4009.3,1.4607]
[1758921249410,0.00206727,4009.4,4009.3,1.0121]
[1758921252017,0.44851,4010.2,4010.1,0.7515]
[1758921252317,3.2078,4010.4,4010.3,0.428]
[1758921252517,3.2078,4010.4,4010.3,0.7387]
[1758921253112,3.41498344,4010.4,4010.3,0.7387]
[1758921253308,0.4236,4011.3,4011.2,0.7387]
[1758921253510,0.4236,4011.3,4011.2,0.9907]
[1758921253708,0.54046548,4011.3,4011.2,0.9907]
[1758921254412,0.118808,4011.3,4011.2,0.9907]
[1758921254713,0.324008,4011.3,4011.2,0.9907]
[1758921255412,0.20714252,4011.3,4011.2,0.9907]
[1758921256117,0.20714252,4011.3,4011.2,1.43909]
[1758921256303,0.00194252,4011.3,4011.2,1.43909]
[1758921256906,3.2078,4012.1,4012.0,0.3551]
[1758921257111,3.2078,4012.1,4012.0,1.1219]
[1758921257612,3.2078,4012.6,4012.5,0.8709]
[1758921257809,3.2078,4012.6,4012.5,1.1219]
[1758921258115,3.20985949,4012.6,4012.5,1.12501477]
[1758921258317,3.20985949,4012.6,4012.5,1.32686955]
[1758921258716,3.20985949,4012.6,4012.5,6.32686955]
[1758921259313,3.19539279,4012.6,4012.5,6.32686955]
[1758921259616,3.2078,4013.6,4013.5,0.5602]
[1758921259816,3.2078,4013.6,4013.5,1.1219]
[1758921260121,0.2571,4014.1,4014.0,0.1322]
[1758921260312,0.6807,4014.1,4014.0,0.9168]
[1758921260515,0.68332951,4014.1,4014.0,0.5617]
[1758921261020,0.68332951,4014.1,4014.0,0.9168]
[1758921261216,0.42622951,4014.1,4014.0,1.1219]
[1758921261720,0.00262951,4014.1,4014.0,1.1219]
[1758921264221,0.00262951,4014.1,4014.0,39.9969]
[1758921265415,3.2078,4015.0,4014.0,40.68912]
[1758921265618,3.6314,4015.0,4014.9,0.5336]
[1758921265817,3.6314,4015.0,4014.9,0.7846]
[1758921266223,3.8885,4015.0,4014.9,0.7846]
[1758921266525,3.89158375,4015.0,4014.9,0.7846]
[1758921267215,0.44802,4014.7,4014.5,0.1322]
[1758921267421,0.4236,4014.7,4014.6,0.7846]
[1758921267628,0.4236,4014.7,4014.6,0.9897]
[1758921268018,0.2052,4014.7,4014.6,0.9897]
[1758921268213,0.2052,4014.8,4014.7,1.18671]
[1758921268619,0.2052,4014.8,4014.7,0.7387]
[1758921269725,0.4236,4014.8,4014.7,0.7387]
[1758921270125,0.00308375,4015.0,4014.9,0.7387]
[1758921270627,3.2078,4015.5,4015.4,0.7387]
[1758921270820,3.413,4016.3,4016.2,0.2229]
[1758921271018,3.2078,4017.3,4016.6,0.3107]
[1758921271227,3.8885,4017.3,4017.2,0.5336]
[1758921271423,3.6314,4017.3,4017.2,0.7856]
[1758921271727,3.63345361,4017.3,4017.2,0.78562311]
[1758921271930,3.63345361,4017.3,4017.2,0.99072311]
[1758921273821,0.42565361,4017.3,4017.2,0.99072311]
[1758921276431,0.20725361,4017.3,4017.2,0.99072311]
[1758921277526,0.42565361,4017.3,4017.2,2.311e-05]
[1758921277722,0.42565361,4017.3,4017.2,0.78562311]
[1758921277924,0.00205361,4017.3,4017.2,0.99072311]
[1758921278123,0.20725361,4017.3,4017.2,0.99072311]
[1758921279029,0.87337361,4017.3,4017.2,0.73872311]
[1758921279333,0.42565361,4017.3,4017.2,0.99072311]
[1758921279634,0.20725361,4017.3,4017.2,0.99072311]
[1758921279931,0.42565361,4017.3,4017.2,0.56272311]
[1758921280128,0.42565361,4017.3,4017.2,0.99072311]
[1758921280426,0.00205361,4017.3,4017.2,0.99072311]
[1758921284730,0.00205361,4017.3,4017.2,0.73872311]
[1758921284932,0.00205361,4017.3,4017.2,39.82172311]
[1758921285527,0.00205361,4017.3,4017.2,0.73872311]
[1758921285733,0.00205361,4017.3,4017.2,39.82072311]
[1758921286834,0.00205361,4017.3,4017.2,1.18645311]
[1758921287036,0.00205361,4017.3,4017.2,40.26645311]
[1758921287536,0.00205361,4017.3,4017.2,1.18645311]
[1758921287727,0.21025361,4017.3,4017.2,1.18645311]
[1758921287928,0.21025361,4017.3,4017.2,1.43845311]
[1758921289834,0.21025361,4017.3,4017.2,0.99072311]
[1758921290731,0.00205361,4017.3,4017.2,1.43845311]
[1758921290930,0.00205361,4017.3,4017.2,0.99072311]
[1758921291132,0.00205361,4017.3,4017.2,1.43845311]
[1758921291338,0.00205361,4017.3,4017.2,0.99072311]
[1758921291831,0.00205361,4017.3,4017.2,1.43845311]
[1758921292727,0.67425361,4017.3,4017.2,0.56272311]
[1758921292927,0.00205361,4017.3,4017.2,1.00042311]
[1758921293140,0.21025361,4017.3,4017.2,1.00042311]
[1758921293731,0.21025361,4017.3,4017.2,4.65595311]
[1758921293930,0.21025361,4017.3,4017.2,4.20822311]
[1758921294132,0.42095361,4017.3,4017.2,4.20822311]
[1758921294330,0.67425361,4017.3,4017.2,4.20822311]
[1758921295637,1.12197361,4017.3,4017.2,3.98322311]
[1758921296034,1.12197361,4017.3,4017.2,0.77542311]
[1758921297526,0.42095361,4017.3,4017.2,1.00042311]
[1758921297732,0.42095361,4017.3,4017.2,0.74842311]
[1758921297936,0.42095361,4017.3,4017.2,1.00042311]
[1758921298138,0.42095361,4017.3,4017.2,1.44815311]
[1758921298438,0.42095361,4017.3,4017.2,1.00042311]
[1758921298644,0.86867361,4017.3,4017.2,1.00042311]
[1758921299136,0.92902856,4017.3,4017.2,1.00042311]
[1758921299539,0.71832856,4017.3,4017.2,1.44815311]
[1758921299734,0.95784856,4017.3,4017.2,1.00042311]
[1758921300129,1.16604856,4017.3,4017.2,1.00042311]
[1758921300331,0.65797361,4017.3,4017.2,1.00042311]
[1758921301137,0.00205361,4017.3,4017.2,1.44815311]
[1758921301331,0.00205361,4017.3,4017.2,4.65595311]
[1758921303039,0.00205361,4017.3,4017.2,6.67882469]
[1758921303642,1.37223,4018.7,4018.1,0.3105]
[1758921303943,0.65582,4018.2,4018.1,0.7484]
[1758921304144,0.65582,4018.2,4018.1,1.0004]
[1758921304740,0.65784877,4018.2,4018.1,1.0004]
[1758921305353,0.21022877,4018.2,4018.1,1.44803]
[1758921305649,0.00202877,4018.2,4018.1,1.44803]
[1758921305949,0.00202877,4018.2,4018.1,1.0004]
[1758921305950,0.44964877,4018.2,4018.1,1.0004]
[1758921306538,0.87924877,4018.2,4018.1,0.7484]
[1758921306737,0.87924877,4018.2,4018.1,1.0004]
[1758921307435,0.87924877,4018.2,4018.1,0.7484]
[1758921307746,0.87924877,4018.2,4018.1,1.0011]
[1758921309447,1.13124877,4018.2,4018.1,1.0011]
[1758921310137,1.13124877,4018.2,4018.0,3.2078]
[1758921310138,0.44763,4018.1,4018.0,3.2078]
[1758921310347,1.12783,4018.1,4018.0,1.59262138]
[1758921310544,1.12783,4018.1,4018.0,0.252]
[1758921310849,1.12785,4017.9,4017.8,1.34062138]
[1758921311042,1.12788,4017.7,4017.6,1.34062138]
[1758921311241,0.6802,4017.7,4017.5,1.788552]
[1758921311546,0.6802,4017.7,4017.4,3.2078]
[1758921311547,1.1279,4017.5,4017.4,3.7531]
[1758921311745,1.1279,4017.5,4017.4,3.7927]
[1758921311945,1.1279,4017.5,4017.4,3.4598]
[1758921312845,0.6802,4017.5,4017.2,1.78857511]
[1758921313050,0.7422,4017.0,4016.9,3.2078]
[1758921313252,0.6751,4017.0,4016.9,3.9954]
[1758921313448,5.4216,4017.0,4016.9,5.10260297]
[1758921314044,5.4216,4017.0,4016.9,5.10471928]
[1758921314244,5.4216,4017.0,4016.9,4.21131631]
[1758921314448,5.6751,4017.0,4016.9,0.25411631]
[1758921314648,5.6751,4017.0,4016.9,0.00211631]
[1758921315156,5.7422,4017.0,4016.9,0.25411631]
[1758921315351,5.7422,4017.0,4016.9,0.67162214]
[1758921315552,0.44777,4016.9,4016.7,0.89340297]
[1758921315853,0.6751,4016.6,4016.5,0.89340297]
[1758921316056,0.6751,4016.6,4016.5,1.14540297]
[1758921316248,0.6751,4016.6,4016.5,0.252]
[1758921316644,5.6751,4016.6,4016.5,0.00175831]
[1758921316846,5.6751,4016.6,4016.5,0.25375831]
[1758921317042,0.70137,4016.0,4015.9,4.10120297]
[1758921317248,1.12297,4016.0,4015.9,3.4598]
[1758921317552,1.12297,4016.0,4015.9,3.9954]
[1758921318057,1.12297,4016.0,4015.9,3.9983175]
[1758921318556,0.44787,4016.0,4015.9,4.2121175]
[1758921319645,0.44787,4016.0,4015.9,3.9601175]
[1758921319846,0.44787,4016.0,4015.9,4.2121175]
[1758921321156,1.12297,4016.0,4015.9,0.5841175]
[1758921321951,6.18497,4016.0,4015.9,0.0029175]
[1758921322155,6.18497,4016.0,4015.9,0.2549175]
[1758921322450,1.12297,4016.0,4015.9,0.7905175]
[1758921322656,0.86947,4016.0,4015.9,0.7905175]
[1758921322856,0.86947,4016.0,4015.9,0.5385175]
[1758921323157,1.11979,4015.7,4015.2,0.4202]
[1758921323457,4.38632,4015.6,4015.5,0.4584]
[1758921323655,4.38632,4015.6,4015.5,0.252]
[1758921324058,1.1786,4014.9,4014.8,3.4142]
[1758921324246,1.18074969,4014.9,4014.8,3.88265719]
[1758921324951,1.18074969,4014.9,4014.8,4.21185719]
[1758921325154,0.45014969,4014.9,4014.8,4.21185719]
[1758921325461,1.18074969,4014.9,4014.8,4.21185719]
[1758921326953,0.00214969,4014.9,4014.8,4.65986719]
[1758921330157,0.65295,4016.2,4016.1,0.7494]
[1758921330351,0.309,4016.4,4016.1,1.0014]
[1758921330556,0.65291,4016.6,4016.5,0.8853]
[1758921330755,1.17841,4016.6,4016.5,0.2064]
[1758921331056,0.45002901,4016.6,4016.5,0.252]
[1758921331368,0.45002901,4016.6,4016.5,1.1373]
[1758921331965,0.65512901,4016.6,4016.5,1.1373]
[1758921333162,1.18062901,4016.6,4016.5,1.1373]
[1758921333362,1.18062901,4016.6,4016.5,1.0014]
[1758921333853,1.18062901,4016.6,4016.5,1.1373]
[1758921334051,0.65512901,4016.6,4016.5,1.1373]
[1758921334461,0.45002901,4016.6,4016.5,1.1373]
[1758921335564,1.18062901,4016.6,4016.5,0.252]
[1758921335765,1.18062901,4016.6,4016.5,0.7876]
[1758921336558,1.17844,4016.3,4016.2,0.2064]
[1758921336762,0.86946,4016.1,4016.0,0.5356]
[1758921336951,0.65296,4016.1,4016.0,1.1373]
[1758921340161,0.44786,4016.2,4016.1,0.44785]
[1758921340466,3.72411901,4016.6,4016.5,0.7494]
[1758921340667,3.94061901,4016.6,4016.5,1.0014]
[1758921340967,4.38841901,4016.6,4016.5,1.0014]
[1758921341158,3.86291901,4016.6,4016.5,1.1373]
[1758921341359,4.38841901,4016.6,4016.5,1.0014]
[1758921341568,3.65781901,4016.6,4016.5,1.58512]
[1758921341865,3.65781901,4016.6,4016.5,1.1373]
[1758921342759,3.88351901,4016.6,4016.5,1.1373]
[1758921342954,4.42471901,4016.6,4016.5,1.1373]
[1758921344162,4.42471901,4016.6,4016.5,0.8853]
[1758921344367,4.42471901,4016.6,4016.5,1.1373]
[1758921344368,1.21691901,4016.6,4016.5,1.1373]
[1758921345465,1.21691901,4016.6,4016.5,2.02483205]
[1758921345665,1.21691901,4016.6,4016.5,1.1373]
[1758921347972,1.21691901,4016.6,4016.5,0.8853]
[1758921348473,1.21691901,4016.6,4016.5,1.1373]
[1758921350264,0.89831901,4016.6,4016.5,1.1373]
[1758921350971,1.21691901,4016.6,4016.5,1.1373]
[1758921351571,1.21691901,4016.6,4016.2,0.88753205]
[1758921351572,0.89614,4016.3,4016.2,0.88753205]
[1758921351771,0.44783,4016.4,4016.3,0.7392]
[1758921352670,0.44783,4016.4,4016.3,1.18704]
[1758921353065,0.44783,4016.4,4016.3,2.07912669]
[1758921353266,1.21473,4016.4,4016.3,0.7392]
[1758921353473,1.21473,4016.4,4016.3,0.9912]
[1758921353773,1.21473,4016.4,4016.3,1.88347826]
[1758921354175,1.21473,4016.4,4016.3,1.35867826]
[1758921354374,1.21473,4016.4,4016.3,1.67247826]
[1758921355276,1.21473,4016.4,4016.3,0.7802]
[1758921355676,1.21474,4016.3,4016.2,1.33129807]
[1758921355871,0.89616,4016.1,4016.0,1.54569807]
[1758921356078,1.21476,4016.1,4016.0,2.11149807]
[1758921356378,1.21476,4016.1,4016.0,0.9912]
[1758921358267,1.21476,4016.1,4016.0,0.7392]
[1758921358469,0.44788,4015.9,4015.8,2.09378183]
[1758921358771,1.21478,4015.9,4015.8,0.9912]
[1758921359776,1.21478,4015.9,4015.8,0.7392]
[1758921359982,1.21478,4015.9,4015.8,0.7802]
[1758921360177,0.76649,4015.8,4015.7,3.2078]
[1758921360376,1.21479,4015.8,4015.7,3.988]
[1758921360580,1.21479,4015.8,4015.7,4.199]
[1758921360877,0.89619,4015.8,4015.7,4.6469]
[1758921361082,1.21479,4015.8,4015.7,4.199]
[1758921361276,0.7669,4015.8,4015.5,1.77998183]
[1758921361582,0.7669,4015.3,4015.2,3.2078]
[1758921361776,1.21485,4015.3,4015.2,3.4598]
[1758921361976,0.89628,4015.0,4014.9,0.5282]
[1758921362287,1.21488,4015.0,4014.9,2.12169671]
[1758921362482,1.21488,4015.0,4014.9,2.33269671]
[1758921363179,1.21488,4015.0,4014.9,0.9912]
[1758921364486,1.21489,4014.9,4014.8,0.00265719]
[1758921364682,1.33289592,4014.9,4014.8,0.25465719]
[1758921365487,6.33289592,4014.9,4014.8,0.00265719]
[1758921365679,6.33289592,4014.9,4014.8,0.25465719]
[1758921367682,6.33289592,4014.9,4014.8,0.00265719]
[1758921368381,1.00032,4013.8,4013.7,4.86016026]
[1758921368581,1.11832592,4013.8,4013.7,4.86016026]
[1758921368783,1.32872592,4013.8,4013.7,3.6794]
[1758921368974,1.32872592,4013.8,4013.7,3.4598]
[1758921369181,1.32872592,4013.8,4013.7,3.46228132]
[1758921369481,1.32872592,4013.8,4013.7,4.22118132]
[1758921369482,0.88060592,4013.8,4013.7,4.22118132]
[1758921370095,1.32872592,4013.8,4013.7,4.22118132]
[1758921370385,0.44809,4014.1,4013.9,0.4481]
[1758921370684,3.65584,4014.5,4014.4,0.7589]
[1758921370986,0.11746913,4014.5,4014.4,1.45895]
[1758921371184,0.56550913,4014.5,4014.4,1.45895]
[1758921373880,1.30840913,4014.5,4014.4,1.0109]
[1758921376787,0.65648,4014.1,4014.0,0.2255]
[1758921376990,0.86448,4014.1,4014.0,1.1587]
[1758921379196,0.86448,4014.1,4013.8,3.2078]
[1758921379197,0.44811,4013.9,4013.8,3.2078]
[1758921379388,1.31344411,4013.9,4013.8,4.0254]
[1758921379589,1.31344411,4013.9,4013.8,4.2397]
[1758921379986,1.31344411,4013.9,4013.8,1.0319]
[1758921381203,1.19102,4013.8,4013.7,0.00248132]
[1758921381396,1.31345411,4013.8,4013.7,0.25448132]
[1758921381598,1.31345411,4013.8,4013.7,0.82008132]
[1758921382402,1.31345411,4013.8,4013.7,1.03438132]
[1758921387004,0.98695411,4013.8,4013.7,1.48251132]
[1758921387300,0.57070741,4013.8,4013.7,1.48251132]
[1758921387495,0.65652,4013.8,4013.7,1.48251132]
[1758921387889,0.77910643,4013.8,4013.7,1.03438132]
[1758921388392,0.33098643,4013.8,4013.7,1.48251132]
[1758921388592,0.12258643,4013.8,4013.7,1.48251132]
[1758921388800,0.12258643,4013.8,4013.7,2.37597158]
[1758921389201,0.44808,4014.2,4014.1,1.22798]
[1758921389397,0.5708279,4014.2,4014.1,1.47998]
[1758921390200,0.7792279,4014.2,4014.1,1.0319]
[1758921390397,0.77924213,4014.2,4014.1,1.0319]
[1758921390599,1.31374213,4014.2,4014.1,1.0319]
[1758921391198,1.31374213,4014.2,4013.7,0.00248132]
[1758921391199,0.44812,4013.8,4013.7,0.89523239]
[1758921391402,1.31378213,4013.8,4013.7,1.37273239]
[1758921391798,1.31378213,4013.8,4013.7,1.92713239]
[1758921392495,1.31378213,4013.8,4013.7,2.37526239]
[1758921393297,0.86566213,4013.8,4013.7,1.48251132]
[1758921393501,0.53916213,4013.8,4013.7,1.48251132]
[1758921393696,0.98728213,4013.8,4013.7,1.48251132]
[1758921396104,0.12276213,4013.8,4013.7,2.82400803]
[1758921396405,0.12276213,4013.8,4013.7,1.48251132]
[1758921396799,3.5343,4014.6,4013.7,1.48251132]
[1758921396800,0.65643,4014.6,4014.5,0.5666]
[1758921396995,0.65643,4014.6,4014.5,1.1587]
[1758921398004,0.65646,4014.3,4014.2,1.67398283]
[1758921398203,0.44806,4014.3,4014.2,1.92598283]
[1758921398894,0.86446,4014.3,4014.2,1.92598283]
[1758921399100,1.19096,4014.3,4014.2,1.92598283]
[1758921401098,1.19096,4014.3,4014.2,0.89408283]
[1758921401302,1.19099,4014.0,4013.9,1.67398283]